bitfinex/quotes_ETHUSD_20240902
["timestamp","ask_amount","ask_price","bid_price","bid_amount"]
[1725265866983,2.82426,2478.6,2477.7,2.82519]
[1725265867272,2.82395,2478.8,2477.3,2.3552]
[1725265867273,2.82409,2478.7,2477.3,2.3552]
[1725265867480,2.82399,2478.8,2477.7,2.82519]
[1725265867771,2.82431,2478.5,2477.7,2.82519]
[1725265867927,2.82441,2478.4,2477.7,2.82519]
[1725265868122,2.82441,2478.4,2477.7,3.390248]
[1725265868977,2.82456,2478.3,2477.5,2.82539]
[1725265869279,0.4035157,2478.2,2477.2,2.82575]
[1725265869462,5.0,2478.3,2477.3,2.82556]
[1725265869463,2.82485,2478.1,2477.3,2.82556]
[1725265869770,7.82453,2478.3,2476.8,2.4949]
[1725265869771,3.0,2478.3,2477.2,2.82571]
[1725265869974,3.0,2478.3,2477.6,2.82531]
[1725265870175,2.82433,2478.5,2477.6,2.82531]
[1725265870176,3.0,2478.4,2477.6,2.82531]
[1725265870388,5.82448,2478.4,2477.6,2.82531]
[1725265870527,4.01173678,2478.8,2477.7,2.36090729]
[1725265870840,4.01173678,2478.8,2478.0,2.82476]
[1725265870841,2.82415,2478.7,2478.0,2.82476]
[1725265871043,2.82415,2478.7,2477.7,2.2802]
[1725265871044,2.82429,2478.5,2477.7,2.2802]
[1725265871229,2.8244,2478.4,2477.8,2.82507]
[1725265871432,2.82451,2478.3,2477.4,2.82548]
[1725265871629,0.282429,2478.4,2477.4,3.108028]
[1725265871993,0.282429,2478.4,2476.7,3.0]
[1725265871994,2.8255,2477.5,2476.8,2.8262]
[1725265872133,0.28255,2477.4,2476.8,2.8262]
[1725265872329,2.82521,2477.7,2476.6,2.8264]
[1725265872330,2.82578,2477.2,2476.6,2.8264]
[1725265872590,2.82576,2477.3,2476.4,2.82665]
[1725265872801,7.29425778,2477.6,2476.2,5.28588]
[1725265872802,2.8259,2477.1,2476.2,5.28588]
[1725265873082,2.82622,2476.9,2476.2,5.28588]
[1725265873285,2.82622,2476.9,2476.3,2.82679]
[1725265873436,0.282576,2477.2,2476.6,2.82643]
[1725265873762,6.29431278,2477.2,2476.2,2.459]
[1725265873931,6.29431278,2477.2,2475.8,2.333]
[1725265873932,3.92943128,2477.1,2475.8,2.333]
[1725265875094,2.0,2476.8,2475.8,2.333]
[1725265875434,6.01173678,2476.8,2475.8,2.333]
[1725265875798,4.04052271,2476.7,2474.8,2.4635]
[1725265875932,0.92943128,2477.1,2475.3,2.4635]
[1725265876134,2.08687801,2478.5,2474.7,4.278]
[1725265876135,2.0,2477.7,2475.6,4.01173678]
[1725265876330,2.0,2477.7,2475.8,2.4635]
[1725265876563,0.43934903,2477.7,2476.0,2.4635]
[1725265876776,2.0,2477.7,2476.2,2.4635]
[1725265877142,2.49981481,2477.7,2476.2,2.4635]
[1725265877432,0.24998148,2477.6,2476.3,0.24635]
[1725265877593,0.49981481,2477.6,2476.4,0.0807367]
[1725265877738,0.49981481,2477.6,2476.3,0.24635]
[1725265878084,0.49981481,2477.6,2476.4,0.08073606]
[1725265878298,2.37565803,2478.3,2476.5,2.9512]
[1725265878440,2.49981481,2478.0,2476.5,2.481925]
[1725265878663,6.51155159,2478.0,2476.5,2.481925]
[1725265878846,2.0,2477.9,2476.6,0.08073312]
[1725265879095,1.11772097,2477.9,2476.6,0.08073312]
[1725265879242,2.0,2477.7,2476.5,2.4012]
[1725265879442,2.46656581,2477.7,2476.6,0.080741]
[1725265879695,2.73168133,2477.7,2476.6,0.3289351]
[1725265879872,0.73168133,2477.7,2476.6,0.32892649]
[1725265880075,0.46656581,2477.7,2476.6,0.32892649]
[1725265880244,0.46656581,2477.7,2476.6,0.2481941]
[1725265880445,0.46656581,2477.7,2476.7,0.08073418]
[1725265880796,3.65115516,2477.9,2476.7,0.08073418]
[1725265880996,2.46656581,2478.1,2476.7,0.08073418]
[1725265881186,0.46656581,2478.1,2476.9,2.3815]
[1725265881500,2.46656581,2478.4,2477.0,0.32694187]
[1725265881787,0.46656581,2478.3,2477.0,0.2462226]
[1725265881943,0.24665658,2478.2,2477.1,0.08072231]
[1725265882144,0.71322239,2478.2,2477.1,0.08072231]
[1725265882375,0.46656581,2478.1,2477.0,0.2462226]
[1725265883059,2.0,2477.7,2476.9,2.3815]
[1725265883285,0.46656581,2477.6,2475.8,2.2971]
[1725265883481,0.24665658,2477.5,2476.0,2.2971]
[1725265883743,2.0,2477.7,2476.0,2.2971]
[1725265883987,0.46656581,2477.5,2476.0,2.2971]
[1725265884191,2.0,2477.7,2476.2,2.4614]
[1725265884499,3.0,2478.1,2476.4,2.4614]
[1725265884500,2.0,2478.1,2476.4,2.4614]
[1725265884789,0.32466566,2478.0,2476.5,2.4614]
[1725265884999,0.79123147,2478.0,2476.5,2.4614]
[1725265885144,2.0,2477.6,2476.5,2.4614]
[1725265885446,2.0,2477.9,2476.5,2.4614]
[1725265885646,0.46656581,2477.8,2476.5,2.4614]
[1725265885896,2.0,2477.6,2476.5,2.4614]
[1725265886047,0.49303341,2477.6,2476.5,2.70754]
[1725265886699,5.0,2477.9,2476.5,2.70754]
[1725265886992,2.0,2477.9,2476.7,2.3501]
[1725265887196,2.72549998,2477.9,2476.8,0.29001]
[1725265887894,2.24665658,2478.2,2476.9,0.08072541]
[1725265888060,5.24665658,2478.2,2476.9,0.08072541]
[1725265888399,2.0,2478.2,2477.0,2.2928]
[1725265888580,0.49303341,2478.3,2477.1,0.08071822]
[1725265888783,0.49303341,2478.3,2477.2,2.2928]
[1725265889092,0.49303341,2478.3,2477.3,0.08071238]
[1725265889294,0.49303341,2478.3,2477.2,2.2928]
[1725265889295,2.0,2478.2,2477.2,2.2928]
[1725265889457,0.24930334,2478.1,2477.3,0.08072351]
[1725265889647,0.24930334,2478.1,2477.2,2.2928]
[1725265890190,2.82501,2477.9,2477.2,5.11853]
[1725265890389,7.64867,2478.5,2477.7,2.8251]
[1725265890594,2.82464,2478.2,2477.5,2.82541]
[1725265890800,0.282464,2478.1,2477.6,2.82529]
[1725265890952,0.49303341,2478.4,2477.7,0.08071467]
[1725265891149,2.82411,2478.7,2477.9,2.82489]
[1725265891378,2.82366,2479.1,2478.5,2.82428]
[1725265891568,0.1210522,2479.2,2478.7,2.82397]
[1725265891858,5.2756498,2479.1,2478.3,2.82442]
[1725265892055,0.5396702,2479.0,2478.4,5.1354]
[1725265892308,0.1210522,2479.2,2478.5,2.90494529]
[1725265892620,0.1210522,2479.2,2478.8,2.82392]
[1725265893202,0.1210522,2479.2,2479.0,2.82361]
[1725265894009,0.1210522,2479.2,2479.1,5.1948]
[1725265894213,4.01173678,2479.9,2479.1,5.1948]
[1725265894214,0.005,2480.2,2479.4,2.82317]
[1725265894507,0.005,2480.2,2479.2,3.173041]
[1725265894508,0.005,2480.2,2480.1,10.83858]
[1725265894711,0.005,2480.2,2480.1,11.38858]
[1725265894925,0.1210522,2481.7,2480.6,8.01498]
[1725265895206,0.41453707,2481.7,2480.6,8.816478]
[1725265895435,0.41453707,2481.7,2481.6,8.01272]
[1725265895436,0.1210522,2481.7,2481.6,8.01272]
[1725265895558,0.1210522,2481.7,2481.6,10.83348]
[1725265895759,0.1210522,2481.7,2481.6,6.275308]
[1725265896016,0.1210522,2481.7,2481.6,2.3712]
[1725265896296,0.1210522,2481.7,2481.6,8.01272]
[1725265896491,0.0710522,2481.7,2481.6,5.19196]
[1725265896709,0.0710522,2481.7,2481.6,2.3712]
[1725265896924,0.44420374,2481.7,2481.2,2.4423]
[1725265897215,0.0710522,2481.7,2481.2,2.4423]
[1725265897909,0.0710522,2481.7,2481.3,2.82109]
[1725265898112,4.01173678,2481.5,2480.2,2.4449]
[1725265898408,4.01173678,2481.5,2480.6,2.82188]
[1725265898409,1.16373791,2481.4,2480.6,2.82188]
[1725265898711,1.16373791,2481.4,2480.2,2.4449]
[1725265898712,2.8216,2480.9,2480.2,2.4449]
[1725265898864,2.82135,2481.1,2480.3,0.08062862]
[1725265899062,1.02254412,2481.1,2480.2,2.4449]
[1725265899262,0.54040912,2481.0,2480.2,2.4449]
[1725265899504,2.82113,2481.3,2480.4,2.82201]
[1725265899689,3.36153912,2481.3,2480.4,2.82201]
[1725265899874,2.82166,2480.9,2480.2,2.4449]
[1725265900229,3.31006622,2481.5,2480.5,2.822]
[1725265900513,2.82079,2481.6,2480.7,2.82176]
[1725265900694,2.0,2481.4,2480.3,2.82217]
[1725265900904,2.82121,2481.2,2480.3,2.82223]
[1725265901059,4.82101,2481.4,2480.2,2.4449]
[1725265901060,2.82132,2481.1,2480.2,2.4449]
[1725265901418,2.82139,2481.1,2480.2,5.5117]
[1725265901566,2.82149,2481.0,2480.2,2.4449]
[1725265901767,2.82169,2480.8,2480.2,2.4449]
[1725265902069,2.82204,2480.5,2479.7,2.4338]
[1725265902312,2.0,2480.7,2479.7,2.4338]
[1725265902313,2.82224,2480.3,2479.7,2.4338]
[1725265902465,2.82239,2480.2,2479.7,2.4338]
[1725265902665,5.0,2480.8,2479.8,0.0806519]
[1725265902909,5.0,2480.8,2479.8,0.3240319]
[1725265902910,2.82167,2480.8,2479.8,0.3240319]
[1725265903277,2.82178,2480.7,2479.8,0.3240319]
[1725265903482,2.82178,2480.7,2479.9,2.82265]
[1725265903666,2.82178,2480.7,2480.0,0.08063625]
[1725265903887,2.8219,2480.6,2479.9,0.08063625]
[1725265904236,2.82213,2480.4,2479.7,2.4338]
[1725265904387,2.82204,2480.5,2479.7,5.25671]
[1725265904586,0.24804091,2480.6,2479.7,2.4338]
[1725265904817,2.8226,2480.0,2479.2,2.82348]
[1725265904982,2.82292,2479.7,2478.8,5.13771]
[1725265905184,2.82292,2479.7,2478.8,2.3138]
[1725265905382,2.0,2479.8,2478.8,5.13772]
[1725265905383,2.82304,2479.6,2478.8,5.13772]
[1725265905588,3.0,2480.0,2478.9,0.31205087]
[1725265905882,2.82281,2479.8,2479.1,2.82359]
[1725265906236,2.82315,2479.5,2478.9,0.23138]
[1725265906734,4.01173678,2479.1,2477.7,2.3969]
[1725265906932,2.82383,2478.9,2478.1,2.82465]
[1725265907246,2.82384,2478.9,2478.2,2.82459]
[1725265907404,3.0,2479.1,2478.4,2.82439]
[1725265907723,3.0,2479.1,2477.8,0.23969]
[1725265907724,2.82397,2478.8,2478.3,0.282459]
[1725265907948,2.82397,2478.8,2478.1,2.82465]
[1725265908105,2.82407,2478.7,2478.0,2.82485]
[1725265908312,2.82374,2479.0,2478.2,2.82462]
[1725265908491,2.82374,2479.0,2478.3,2.82449]
[1725265908691,2.82374,2479.0,2478.1,2.82474]
[1725265908892,2.0,2479.1,2478.2,0.5956044]
[1725265909132,3.0,2479.2,2478.6,2.82416]
[1725265909833,5.30355912,2479.5,2478.4,5.29706]
[1725265910060,2.82346,2479.3,2478.4,5.826766]
[1725265910215,2.8235,2479.2,2478.4,5.826766]
[1725265910820,0.48040912,2479.5,2478.5,0.66336033]
[1725265910992,2.82307,2479.6,2478.8,2.82384]
[1725265911186,2.82316,2479.5,2478.5,3.48764033]
[1725265911415,2.8234,2479.3,2478.5,2.82428]
[1725265911637,2.8234,2479.3,2478.6,2.82416]
[1725265911860,5.58587612,2479.5,2478.7,2.82404]
[1725265912012,2.8235,2479.2,2478.5,2.82427]
[1725265912213,2.82326,2479.4,2478.6,2.82417]
[1725265912459,4.01173678,2479.1,2478.4,2.4727]
[1725265912676,2.0,2479.2,2478.4,2.4727]
[1725265912677,2.82372,2479.0,2478.4,2.4727]
[1725265912849,2.82352,2479.2,2478.4,5.29709]
[1725265913458,6.3338187,2479.4,2478.7,2.82404]
[1725265913618,6.3338187,2479.4,2478.4,2.4727]
[1725265913619,2.82315,2479.5,2478.8,0.08067498]
[1725265913964,2.82326,2479.4,2478.6,2.82415]
[1725265914162,5.35345591,2479.6,2478.8,2.8239]
[1725265914319,3.0,2479.5,2478.8,2.8239]
[1725265914516,3.0,2479.5,2478.8,3.44248025]
[1725265915098,2.48040912,2479.5,2478.6,2.82412]
[1725265915268,2.82335,2479.4,2478.6,2.82412]
[1725265915422,2.82338,2479.3,2478.6,2.82412]
[1725265915955,2.82335,2479.4,2478.7,2.82405]
[1725265916386,2.82339,2479.3,2478.6,2.82412]
[1725265916536,3.587991,2479.4,2478.7,2.82403]
[1725265916882,3.587991,2479.4,2478.8,2.82394]
[1725265917051,3.587991,2479.4,2478.6,2.82412]
[1725265917052,2.82338,2479.3,2478.6,2.82412]
[1725265917427,3.587991,2479.4,2478.7,2.82404]
[1725265917843,3.587991,2479.4,2478.6,2.82412]
[1725265918042,3.587991,2479.4,2478.8,2.82394]
[1725265918255,2.82307,2479.6,2478.9,2.82382]
[1725265918464,2.82338,2479.3,2478.6,2.82409]
[1725265918735,3.30397912,2479.2,2478.4,5.29702]
[1725265919041,6.30397912,2479.2,2478.4,5.29702]
[1725265919465,2.82385,2478.9,2478.4,2.4727]
[1725265919633,2.82372,2479.0,2478.4,2.8243]
[1725265919834,3.0,2479.2,2478.6,2.82409]
[1725265920082,5.82338,2479.3,2478.6,3.106499]
[1725265920232,2.82356,2479.2,2478.6,2.82409]
[1725265920437,5.82338,2479.3,2478.6,2.82409]
[1725265920659,5.64598,2479.7,2478.7,2.47008541]
[1725265920852,2.82307,2479.6,2479.0,2.82366]
[1725265921065,2.82315,2479.5,2478.8,2.82387]
[1725265921377,0.70441517,2479.5,2478.8,2.82385]
[1725265921547,3.52757517,2479.5,2478.9,2.82379]
[1725265921897,3.52757517,2479.5,2478.9,2.8238]
[1725265921898,2.82316,2479.5,2478.9,2.8238]
[1725265922034,2.0,2479.9,2479.5,2.82312]
[1725265922373,2.0,2479.9,2479.3,2.82335]
[1725265922676,2.0,2479.9,2478.7,2.3894]
[1725265922677,0.48040912,2479.8,2478.7,2.3894]
[1725265922876,4.82274,2479.9,2479.2,2.82339]
[1725265923089,0.48040912,2480.2,2479.5,2.3224]
[1725265923390,6.83358678,2480.7,2480.0,2.82255]
[1725265923688,6.83358678,2480.7,2480.2,2.82234]
[1725265923689,4.4921459,2480.7,2480.2,2.82234]
[1725265923985,3.30242912,2480.5,2479.8,2.82273]
[1725265924188,3.30242912,2480.5,2479.5,2.3224]
[1725265924189,2.0,2480.4,2479.5,5.14554]
[1725265924372,3.30271912,2480.3,2479.6,2.82302]
[1725265924569,2.82254,2480.1,2479.5,2.3224]
[1725265924889,3.6463821,2480.3,2479.6,2.82295]
[1725265925093,2.82204,2480.5,2479.5,2.3224]
[1725265925266,6.01173678,2480.7,2479.5,2.3224]
[1725265925267,9.3139259,2480.7,2480.0,2.82254]
[1725265925651,3.24804091,2480.6,2480.0,2.82254]
[1725265925986,4.01173678,2480.7,2480.0,2.82249]
[1725265926188,6.01173678,2481.5,2480.8,2.82163]
[1725265926413,2.8917322,2481.7,2479.6,0.23224]
[1725265926414,0.0710522,2481.7,2481.2,2.82121]
[1725265926621,0.0710522,2481.7,2481.3,2.82105]
[1725265926765,0.0710522,2481.7,2481.3,2.90160663]
[1725265926965,0.0710522,2481.7,2481.4,2.82098]
[1725265927482,0.0710522,2481.7,2481.0,2.2983]
[1725265927483,0.55146132,2481.7,2481.0,2.2983]
[1725265927661,2.48040912,2481.6,2481.0,2.2983]
[1725265927864,2.48040912,2481.6,2480.5,2.4214]
[1725265928163,2.48040912,2481.6,2480.2,2.82231]
[1725265928164,2.82153,2481.0,2480.2,2.82231]
[1725265928358,2.82153,2481.0,2480.1,2.265]
[1725265928359,0.48040912,2481.1,2480.3,0.08062899]
[1725265928611,5.47572489,2481.4,2480.5,2.82198]
[1725265928774,3.0,2481.4,2480.6,2.265]
[1725265928973,3.0,2481.6,2481.0,2.82143]
[1725265929171,2.8918022,2481.7,2480.6,2.265]
[1725265929172,0.0710522,2481.7,2481.1,2.90191065]
[1725265929372,0.0710522,2481.7,2481.3,2.82109]
[1725265929669,0.0710522,2481.7,2481.4,2.82094]
[1725265930015,0.0710522,2481.7,2481.4,2.90152982]
[1725265930180,0.0710522,2481.7,2481.3,5.28075]
[1725265930388,0.0710522,2481.7,2481.6,2.82076]
[1725265931089,0.0710522,2481.7,2481.6,3.39299048]
[1725265931280,0.0710522,2481.7,2481.6,6.21375048]
[1725265931479,0.0710522,2481.7,2481.6,8.52905048]
[1725265931895,0.0710522,2481.7,2481.6,5.70829048]
[1725265932113,0.0710522,2481.7,2481.6,5.13606]
[1725265932318,0.0710522,2481.7,2481.6,7.95682]
[1725265932518,2.81898,2483.2,2482.2,2.3582]
[1725265932715,2.81917,2483.0,2482.3,3.13623544]
[1725265932862,2.81917,2483.0,2482.2,5.17827]
[1725265932863,3.29970912,2482.9,2482.2,5.17827]
[1725265933063,2.81952,2482.7,2482.2,2.3582]
[1725265933429,2.81894,2483.2,2482.5,2.81973]
[1725265933719,0.48040912,2483.0,2482.4,2.81985]
[1725265934119,3.29959912,2483.0,2482.2,2.3582]
[1725265934300,0.35814931,2482.9,2482.2,2.3582]
[1725265934501,0.48040912,2482.8,2482.3,2.81988]
[1725265934703,0.48040912,2482.8,2482.3,0.48110607]
[1725265934934,0.48040912,2483.3,2482.7,2.81939]
[1725265935072,0.48040912,2483.3,2482.8,2.89993306]
[1725265935426,0.48040912,2483.3,2482.9,2.451]
[1725265935573,3.29928912,2483.3,2482.9,2.451]
[1725265935772,0.48040912,2483.2,2482.9,2.451]
[1725265935979,0.48040912,2483.2,2482.6,2.81959]
[1725265935980,2.81984,2482.5,2481.7,2.82061]
[1725265936230,3.30025912,2482.4,2481.7,2.451]
[1725265936524,0.48040912,2482.4,2481.7,2.451]
[1725265936731,3.30036912,2482.4,2481.3,2.3848]
[1725265937025,2.82078,2481.6,2481.3,2.3848]
[1725265937188,2.82089,2481.5,2480.8,2.2787]
[1725265937391,2.8207,2481.7,2480.8,2.2787]
[1725265937392,2.8207,2481.7,2481.0,2.82134]
[1725265937725,2.8207,2481.7,2480.8,2.2787]
[1725265937726,0.48040912,2481.6,2480.8,2.2787]
[1725265937928,2.82099,2481.4,2480.8,2.2787]
[1725265938125,2.82124,2481.2,2480.8,2.2787]
[1725265938430,2.82153,2481.0,2480.3,2.2787]
[1725265938569,2.82156,2480.9,2480.3,2.2787]
[1725265938771,2.82158,2480.9,2480.3,2.2787]
[1725265939005,2.82192,2480.6,2479.5,2.2787]
[1725265939208,2.82205,2480.5,2479.5,2.2787]
[1725265939487,2.82177,2480.8,2479.7,2.8229]
[1725265939674,2.0,2480.9,2479.7,2.8229]
[1725265939675,2.82201,2480.5,2479.7,2.8229]
[1725265939892,0.54940912,2480.7,2479.6,0.22787]
[1725265940119,0.54940912,2480.7,2479.5,5.1018]
[1725265940120,2.82237,2480.2,2479.5,2.2787]
[1725265940279,2.82225,2480.3,2479.5,2.2787]
[1725265940491,4.5611459,2480.7,2479.5,2.2787]
[1725265940492,2.82238,2480.2,2479.5,2.2787]
[1725265940686,2.82238,2480.2,2479.6,0.08065343]
[1725265940890,2.82212,2480.4,2479.6,0.08065343]
[1725265941087,2.82202,2480.5,2479.8,2.82278]
[1725265941314,2.82202,2480.5,2479.9,0.08063782]
[1725265941534,2.82194,2480.6,2479.9,0.08063782]
[1725265941737,4.01173678,2480.7,2479.9,0.08063782]
[1725265941916,2.82214,2480.4,2479.6,3.05893534]
[1725265942104,2.82214,2480.4,2479.7,0.08063787]
[1725265942947,2.82169,2480.8,2479.7,0.08063785]
[1725265943257,1.674103,2481.6,2480.3,2.4758]
[1725265943258,0.54940912,2481.3,2480.3,2.4758]
[1725265943402,3.60184912,2481.3,2480.3,3.005613]
[1725265943606,2.82144,2481.0,2480.3,5.90846069]
[1725265943937,2.82144,2481.0,2479.9,2.3175]
[1725265943938,0.54940912,2481.0,2479.9,2.3175]
[1725265944116,2.82179,2480.7,2479.9,2.3175]
[1725265944320,2.8221,2480.5,2479.9,2.3175]
[1725265944554,0.54940912,2480.9,2479.9,2.3175]
[1725265944718,2.82155,2480.9,2480.2,2.82234]
[1725265944916,2.82168,2480.8,2480.0,2.82257]
[1725265945189,2.82182,2480.7,2480.0,2.82257]
[1725265945451,0.54940912,2480.8,2480.1,2.90308941]
[1725265945672,2.82136,2481.1,2480.3,2.82219]
[1725265945870,2.82136,2481.1,2480.4,0.08062226]
[1725265946008,3.60185912,2481.3,2480.0,0.23175]
[1725265946009,0.78073912,2481.3,2480.0,0.23175]
[1725265946211,2.82217,2480.4,2479.9,2.3175]
[1725265946431,2.82193,2480.6,2479.9,5.1401]
[1725265946614,2.82193,2480.6,2480.0,0.08063598]
[1725265946817,0.54940912,2481.0,2480.0,0.60270958]
[1725265947009,0.54940912,2481.0,2480.2,2.82226]
[1725265947244,0.54940912,2481.0,2479.9,5.14017]
[1725265947245,2.82198,2480.6,2479.9,5.14017]
[1725265947409,2.82198,2480.6,2479.9,2.3175]
[1725265947604,2.82174,2480.8,2479.9,2.3175]
[1725265947605,2.82174,2480.8,2479.9,2.831525]
[1725265947951,2.82174,2480.8,2480.2,2.82231]
[1725265948106,2.82174,2480.8,2480.0,2.82252]
[1725265948308,2.822,2480.6,2479.9,2.3175]
[1725265948538,2.822,2480.6,2478.5,15.17419]
[1725265948539,2.82254,2480.1,2479.2,2.82341]
[1725265948734,2.82266,2480.0,2479.3,2.82334]
[1725265948963,2.54940912,2480.5,2479.3,2.82334]
[1725265948964,2.82225,2480.3,2479.5,2.82306]
[1725265949157,2.82252,2480.1,2479.4,2.82325]
[1725265949361,2.82252,2480.1,2479.3,0.813695]
[1725265949511,0.54940912,2480.2,2479.7,2.82283]
[1725265949714,0.54940912,2480.2,2479.5,2.82304]
[1725265950017,2.82255,2480.1,2479.3,2.82336]
[1725265950221,2.8226,2480.0,2479.2,2.82348]
[1725265950662,2.82286,2479.8,2479.1,5.31374]
[1725265951413,0.33719591,2480.1,2479.2,0.08066218]
[1725265951733,2.82235,2480.2,2479.2,0.08066218]
[1725265952061,2.82273,2479.9,2479.2,2.82338]
[1725265952212,2.82238,2480.2,2479.4,2.4237]
[1725265952415,2.82238,2480.2,2479.5,2.90367947]
[1725265952734,2.82209,2480.5,2479.7,2.8228]
[1725265952939,4.01173678,2480.6,2479.9,2.82262]
[1725265953239,4.01173678,2480.6,2480.0,2.82258]
[1725265953447,3.37120912,2480.7,2480.0,3.3871]
[1725265953655,3.37120912,2480.7,2480.0,5.10297]
[1725265953868,3.37120912,2480.7,2480.1,2.82238]
[1725265954086,2.8219,2480.6,2480.0,5.10299]
[1725265954696,0.54940912,2480.6,2480.0,2.2805]
[1725265954844,0.54940912,2480.6,2480.1,2.82238]
[1725265955045,2.0,2481.1,2480.4,2.82204]
[1725265955251,2.82141,2481.1,2480.5,2.82191]
[1725265955494,2.82141,2481.1,2480.0,2.2805]
[1725265955495,2.0,2480.9,2480.0,2.2805]
[1725265955695,2.82199,2480.6,2480.0,2.2805]
[1725265956209,2.82199,2480.6,2479.7,2.82288]
[1725265956210,3.37139912,2480.6,2479.7,2.82288]
[1725265956519,2.82212,2480.4,2479.7,2.82283]
[1725265956849,2.82238,2480.2,2479.6,2.4972]
[1725265957049,3.37157912,2480.4,2479.7,2.82284]
[1725265957050,5.64439,2480.4,2479.7,2.82284]
[1725265957357,4.02149667,2480.4,2479.6,2.4972]
[1725265957562,2.82267,2480.0,2479.3,2.82332]
[1725265958596,2.8227,2479.9,2479.3,2.82332]
[1725265959209,2.82267,2480.0,2479.3,2.82329]
[1725265959359,2.82267,2480.0,2479.4,2.82326]
[1725265959698,2.82264,2480.0,2479.3,2.82329]
[1725265960002,6.83410678,2480.2,2479.3,3.340199]
[1725265960149,2.82246,2480.1,2479.5,2.82313]
[1725265960358,2.82246,2480.1,2478.5,2.82421]
[1725265960359,4.452,2480.0,2478.4,2.3907]
[1725265960560,8.83474678,2479.7,2479.0,2.8236]
[1725265960765,6.5611459,2479.7,2478.7,2.82405]
[1725265961009,3.5536184,2479.9,2478.4,2.62977]
[1725265961010,2.82384,2478.9,2478.4,2.3907]
[1725265961177,2.82395,2478.8,2478.1,2.82471]
[1725265961508,4.5611459,2478.9,2478.0,2.2948]
[1725265961705,4.5611459,2478.9,2477.8,2.82508]
[1725265961706,3.37349912,2478.7,2477.8,2.82508]
[1725265961861,2.82442,2478.4,2477.7,2.82516]
[1725265962062,2.82452,2478.3,2477.6,2.2702]
[1725265962301,2.82485,2478.1,2477.6,2.2702]
[1725265962500,4.82464,2478.2,2477.6,2.2702]
[1725265962667,2.82443,2478.4,2477.6,2.2702]
[1725265963192,2.82472,2478.2,2477.6,2.2702]
[1725265963368,2.82497,2477.9,2477.2,2.2702]
[1725265963862,2.82497,2477.9,2477.2,5.09595]
[1725265964502,2.82497,2477.9,2477.3,2.82563]
[1725265964830,2.82486,2478.0,2477.4,2.82554]
[1725265965176,2.82499,2477.9,2477.2,2.779803]
[1725265965412,2.82499,2477.9,2477.2,2.2702]
[1725265965413,2.82519,2477.8,2477.2,2.2702]
[1725265965623,2.82524,2477.7,2477.2,2.2702]
[1725265965926,2.82509,2477.8,2477.2,2.2702]
[1725265966087,2.82522,2477.7,2477.2,2.2702]
[1725265966289,2.82522,2477.7,2476.8,2.2557]
[1725265966290,3.37462912,2477.7,2476.8,2.2557]
[1725265966530,3.37462912,2477.7,2477.0,2.82598]
[1725265966531,2.82522,2477.7,2477.0,2.82598]
[1725265966848,5.76362359,2477.9,2476.8,2.84463917]
[1725265966849,2.82552,2477.5,2476.8,2.2557]
[1725265966989,2.82552,2477.5,2476.2,2.82689]
[1725265966990,2.0,2477.2,2476.4,2.3647]
[1725265967333,2.82653,2476.6,2476.0,2.3647]
[1725265967488,2.82636,2476.7,2476.0,2.3647]
[1725265967677,2.82654,2476.6,2476.0,2.3647]
[1725265967893,3.37597912,2476.5,2475.6,5.19226]
[1725265968220,2.82689,2476.3,2475.6,2.3647]
[1725265968376,3.0,2476.4,2475.8,2.82735]
[1725265968571,3.99530359,2476.4,2475.8,2.82735]
[1725265968826,4.01173678,2476.5,2476.0,2.82711]
[1725265969031,2.0,2476.6,2476.2,2.8269]
[1725265969316,2.0,2476.6,2476.0,2.82704]
[1725265969676,2.0,2476.6,2476.2,2.82688]
[1725265970103,3.0,2476.8,2476.3,2.82678]
[1725265970318,3.0,2476.8,2476.2,2.82688]
[1725265970602,3.54940912,2476.8,2476.2,2.82688]
[1725265970931,2.0,2477.1,2476.4,2.82664]
[1725265971141,2.54940912,2477.1,2476.6,2.8264]
[1725265971417,4.01173678,2477.3,2476.8,2.82613]
[1725265971624,2.0,2477.5,2477.0,2.8259]
[1725265971826,0.8775345,2477.5,2477.0,2.8259]
[1725265971985,0.8775345,2477.5,2476.8,2.82622]
[1725265972181,3.7029645,2477.5,2476.8,2.82622]
[1725265972381,6.83699678,2477.7,2476.7,0.0807448]
[1725265972639,2.82531,2477.6,2476.9,2.82611]
[1725265972865,2.82566,2477.3,2476.7,2.8263]
[1725265973048,2.0,2477.4,2476.7,2.82625]
[1725265973336,1.39382068,2477.6,2476.6,0.08074546]
[1725265973487,4.01173678,2477.7,2477.1,2.82588]
[1725265973683,2.0,2477.5,2476.9,2.826]
[1725265974415,2.0,2477.5,2476.9,2.82606]
[1725265974935,2.0,2477.5,2477.1,2.82581]
[1725265975099,3.0,2477.6,2477.1,2.82579]
[1725265975831,3.4862512,2477.6,2477.1,2.82579]
[1725265976067,0.4862512,2477.6,2477.1,2.82579]
[1725265976244,4.26144,2477.6,2476.9,5.09168]
[1725265976430,4.26144,2477.6,2477.0,2.82595]
[1725265976658,2.82546,2477.5,2476.7,2.8263]
[1725265976866,6.01173678,2477.7,2477.2,2.82567]
[1725265977076,4.82554,2477.4,2476.6,5.31895]
[1725265977234,2.82588,2477.1,2476.4,2.82663]
[1725265977428,2.82588,2477.1,2476.4,2.82658]
[1725265977627,10.80623198,2477.3,2476.4,2.82658]
[1725265977936,1.2257932,2477.2,2476.5,2.82652]
[1725265978281,5.82577,2477.2,2476.5,5.653]
[1725265978446,3.0,2477.2,2476.7,2.8263]
[1725265978856,6.83696678,2477.7,2476.7,0.565278]
[1725265979057,3.0,2477.6,2477.1,2.82579]
[1725265979291,2.0,2477.5,2476.9,2.8261]
[1725265979607,2.0,2477.5,2477.0,2.82599]
[1725265979817,2.0,2477.5,2476.9,2.8261]
[1725265980030,5.82539,2477.6,2476.9,2.8261]